bitfinex-derivatives/quotes_SOLF0:USTF0_20260308
["timestamp","ask_amount","ask_price","bid_price","bid_amount"]
[1772988429490,9.43839423,81.464,81.403,9.39229326]
[1772988429992,9.43839423,81.464,81.381,9.39229326]
[1772988430791,20.48839423,81.446,81.391,20.45029326]
[1772988430992,9.43839423,81.445,81.392,9.39229326]
[1772988432290,20.49039423,81.433,81.387,11.058]
[1772988432591,9.43839423,81.433,81.387,11.058]
[1772988432790,9.43839423,81.433,81.387,20.45029326]
[1772988433188,9.43839423,81.433,81.39,11.058]
[1772988433392,9.43839423,81.433,81.39,20.45029326]
[1772988433990,9.43839423,81.433,81.391,9.39229326]
[1772988435697,11.051,81.442,81.393,9.39229326]
[1772988436198,11.051,81.442,81.394,20.44929326]
[1772988436395,9.43839423,81.448,81.395,9.39229326]
[1772988437001,9.43839423,81.463,81.4,9.39229326]
[1772988437604,9.43839423,81.46,81.404,9.39229326]
[1772988437991,20.48739423,81.459,81.406,11.056]
[1772988438196,9.43839423,81.458,81.407,9.39229326]
[1772988438997,9.43839423,81.458,81.408,20.44729326]
[1772988439603,9.43839423,81.458,81.41,11.055]
[1772988439803,9.43839423,81.458,81.411,9.39229326]
[1772988440808,9.43839423,81.458,81.413,11.055]
[1772988441109,9.43839423,81.458,81.411,9.39229326]
[1772988441809,11.049,81.457,81.411,9.39229326]
[1772988443811,11.048,81.465,81.413,9.39229326]
[1772988445010,472.63951367,81.483,81.421,9.39229326]
[1772988445312,9.43839423,81.482,81.421,9.39229326]
[1772988446814,9.43839423,81.482,81.42,10.04110067]
[1772988446815,11.047,81.473,81.43,9.39229326]
[1772988447912,11.046,81.481,81.43,9.39229326]
[1772988449613,9.43839423,81.48,81.434,9.39229326]
[1772988450819,9.43839423,81.475,81.42,9.39229326]
[1772988451419,9.43839423,81.473,81.42,9.39229326]
[1772988451621,9.43839423,81.471,81.42,9.39229326]
[1772988451915,11.048,81.461,81.42,9.39229326]
[1772988454223,11.047,81.469,81.422,9.93763567]
[1772988455820,11.047,81.469,81.428,9.93763567]
[1772988457314,11.047,81.469,81.427,11.053]
[1772988457315,482.62487409,81.483,81.43,9.93763567]
[1772988457719,467.06897688,81.5,81.43,9.93763567]
[1772988457720,9.98536042,81.492,81.43,9.93763567]
[1772988457929,9.98536042,81.499,81.441,9.93763567]
[1772988458531,467.06897688,81.5,81.459,9.93763567]
[1772988459225,9.98536042,81.512,81.459,9.93763567]
[1772988459629,9.98536042,81.535,81.461,9.93763567]
[1772988459829,9.98536042,81.533,81.461,9.93763567]
[1772988460028,9.98536042,81.531,81.461,9.93763567]
[1772988460227,9.98536042,81.529,81.461,9.93763567]
[1772988460427,12.27848566,81.541,81.461,9.93763567]
[1772988460428,9.98536042,81.527,81.461,9.93763567]
[1772988460732,9.98536042,81.527,81.46,10.04110067]
[1772988460733,9.98536042,81.524,81.469,9.93763567]
[1772988461832,9.98536042,81.524,81.471,9.93763567]
[1772988462234,9.98536042,81.538,81.471,9.93763567]
[1772988463730,9.98536042,81.538,81.493,9.93763567]
[1772988463924,9.98536042,81.557,81.493,9.93763567]
[1772988464331,9.98536042,81.552,81.497,9.93763567]
[1772988464832,9.98536042,81.548,81.497,9.93763567]
[1772988466829,9.98536042,81.543,81.497,9.93763567]
[1772988472036,9.98536042,81.543,81.5,9.93763567]
[1772988473042,9.98536042,81.537,81.484,9.93763567]
[1772988473936,9.98536042,81.557,81.502,9.93763567]
[1772988474731,21.02136042,81.556,81.507,9.93763567]
[1772988474940,9.98536042,81.555,81.507,9.93763567]
[1772988475632,9.98536042,81.555,81.506,11.042]
[1772988475633,9.98536042,81.555,81.508,11.042]
[1772988475833,9.98536042,81.568,81.509,9.93763567]
[1772988477344,11.034,81.565,81.511,11.041]
[1772988477552,11.034,81.565,81.512,9.93763567]
[1772988478740,11.034,81.565,81.515,11.041]
[1772988478941,11.034,81.565,81.516,9.93763567]
[1772988479441,9.98536042,81.568,81.516,9.93763567]
[1772988480041,9.98536042,81.568,81.526,9.93763567]
[1772988480243,9.98536042,81.568,81.514,9.93763567]
[1772988481747,9.98536042,81.559,81.514,9.93763567]
[1772988484646,2.13409212,81.604,81.469,12.27]
[1772988484647,10.25943883,81.555,81.502,10.50465938]
[1772988485340,9.88287112,81.553,81.504,9.5840013]
[1772988486449,9.88287112,81.549,81.495,11.044]
[1772988486649,9.88287112,81.549,81.491,9.5840013]
[1772988487048,9.88287112,81.539,81.491,9.5840013]
[1772988487951,9.88287112,81.536,81.491,9.5840013]
[1772988489249,9.88287112,81.568,81.493,9.5840013]
[1772988489456,9.88287112,81.566,81.493,9.5840013]
[1772988490852,11.035,81.558,81.509,9.5840013]
[1772988491252,9.88287112,81.557,81.509,9.5840013]
[1772988491754,9.88287112,81.557,81.51,4.0091494]
[1772988492457,9.88287112,81.557,81.511,9.5840013]
[1772988495253,9.88287112,81.553,81.511,9.5840013]
[1772988495450,9.88287112,81.553,81.5,24.6361507]
[1772988496056,9.88287112,81.553,81.501,9.5840013]
[1772988496755,9.88287112,81.548,81.501,9.5840013]
[1772988498053,9.88287112,81.548,81.51,4.0091494]
[1772988498955,11.037,81.546,81.51,4.0091494]
[1772988500665,20.91987112,81.546,81.51,4.0091494]
[1772988502758,4.0091494,81.56,81.51,4.0091494]
[1772988502759,11.037,81.541,81.51,4.0091494]
[1772988504362,9.88287112,81.545,81.511,9.5840013]
[1772988504561,9.88287112,81.545,81.51,4.0091494]
[1772988504967,9.88287112,81.545,81.5,13.5931507]
[1772988505261,9.88287112,81.531,81.49,4.0091494]
[1772988505466,9.88287112,81.531,81.48,4.0091494]
[1772988506267,10.75187848,81.53,81.48,4.0091494]
[1772988506469,9.88287112,81.531,81.48,4.0091494]
[1772988506670,10.75187211,81.53,81.48,4.0091494]
[1772988506971,9.88287112,81.523,81.48,4.0091494]
[1772988507870,11.04,81.522,81.481,11.045]
[1772988508467,20.92287112,81.522,81.481,11.045]
[1772988508862,9.88287112,81.522,81.481,11.045]
[1772988509870,9.88287112,81.522,81.481,20.6290013]
[1772988511675,9.88287112,81.522,81.47,13.5931507]
[1772988511869,9.88287112,81.522,81.471,9.5840013]
[1772988512870,9.84337606,81.518,81.471,9.5840013]
[1772988513871,9.84337606,81.515,81.471,9.5840013]
[1772988519872,9.84337606,81.508,81.46,14.54118286]
[1772988520272,9.84337606,81.508,81.461,10.53203346]
[1772988520778,9.84337606,81.506,81.462,11.048]
[1772988521077,9.84337606,81.506,81.462,21.58003346]
[1772988521376,9.84337606,81.506,81.463,10.53203346]
[1772988523977,9.84337606,81.503,81.463,10.53203346]
[1772988525079,9.84337606,81.501,81.454,11.049]
[1772988525678,9.84337606,81.501,81.454,21.58103346]
[1772988525978,9.84337606,81.499,81.455,10.53203346]
[1772988526178,9.84337606,81.499,81.443,10.53203346]
[1772988527879,20.88937606,81.482,81.443,10.53203346]
[1772988529383,9.84337606,81.481,81.443,10.53203346]
[1772988529779,9.84337606,81.476,81.432,10.53203346]
[1772988530378,9.84337606,81.476,81.441,10.53203346]
[1772988532685,9.84337606,81.476,81.44,4.0091494]
[1772988533686,20.88837606,81.486,81.441,10.53203346]
[1772988533886,9.84337606,81.485,81.441,10.53203346]
[1772988536495,11.044,81.495,81.441,10.53203346]
[1772988536706,9.84337606,81.497,81.46,4.0091494]
[1772988538405,9.84337606,81.497,81.46,14.54118286]
[1772988539201,20.88737606,81.496,81.46,14.54118286]
[1772988539405,9.84337606,81.495,81.46,14.54118286]
[1772988540002,11.042,81.505,81.461,10.53203346]
[1772988540207,9.84337606,81.506,81.47,4.0091494]
[1772988542812,9.84337606,81.506,81.454,11.049]
[1772988543206,10.31216113,81.498,81.454,11.049]
[1772988544011,10.31216113,81.498,81.46,4.0091494]
[1772988545009,10.31216113,81.498,81.46,14.38681511]
[1772988545614,10.31216113,81.498,81.46,14.39227038]
[1772988546308,21.86484861,81.497,81.46,10.37766571]
[1772988546516,10.82084861,81.496,81.46,10.37766571]
[1772988547110,10.82084861,81.496,81.46,14.39227038]
[1772988547908,11.044,81.495,81.46,14.39227038]
[1772988550314,11.044,81.495,81.46,10.37766571]
[1772988556520,10.82084861,81.496,81.461,11.048]
[1772988556823,10.82084861,81.496,81.462,10.37766571]
[1772988565328,11.043,81.504,81.462,10.37766571]
[1772988569934,21.86384861,81.504,81.462,10.37766571]
[1772988571232,11.042,81.511,81.471,10.37766571]
[1772988571431,10.82084861,81.51,81.471,10.37766571]
[1772988573735,10.82084861,81.51,81.472,11.047]
[1772988573930,10.82084861,81.51,81.473,10.99711165]
[1772988575730,11.042,81.509,81.473,10.99711165]
[1772988576036,10.44043245,81.508,81.473,10.99711165]
[1772988576833,10.44043245,81.505,81.473,10.99711165]
[1772988577437,10.44043245,81.501,81.461,10.99711165]
[1772988577837,10.44043245,81.499,81.451,10.99711165]
[1772988578037,10.44043245,81.483,81.441,22.04811165]
[1772988578235,10.44043245,81.509,81.451,10.99711165]
[1772988578436,10.44043245,81.507,81.451,10.99711165]
[1772988578738,10.44043245,81.505,81.451,10.99711165]
[1772988578936,10.44043245,81.503,81.451,10.99711165]
[1772988579239,10.44043245,81.501,81.451,10.99711165]
[1772988579435,10.79646547,81.5,81.451,10.99711165]
[1772988579637,21.23689792,81.499,81.451,10.99711165]
[1772988579838,11.044,81.492,81.451,10.99711165]
[1772988581643,11.044,81.492,81.461,10.99711165]
[1772988584436,10.44043245,81.498,81.461,10.99711165]
[1772988587341,11.043,81.497,81.461,10.99711165]
[1772988587746,21.48343245,81.497,81.461,10.99711165]
[1772988595651,10.44043245,81.496,81.461,10.99711165]
[1772988602451,10.44043245,81.496,81.462,10.99711165]
[1772988603356,10.94810634,81.489,81.421,11.02584084]
[1772988603557,10.94810634,81.489,81.431,11.02584084]
[1772988603858,10.94810634,81.484,81.432,11.02584084]
[1772988605753,10.8368115,81.481,81.433,11.052]
[1772988605962,10.8368115,81.481,81.434,11.18254708]
[1772988606959,10.8368115,81.478,81.434,11.18254708]
[1772988616569,10.8368115,81.478,81.441,11.18254708]
[1772988617371,10.8368115,81.484,81.441,11.18254708]
[1772988618863,10.8368115,81.481,81.441,11.18254708]
[1772988620971,11.046,81.48,81.441,11.18254708]
[1772988621275,10.8368115,81.479,81.441,11.18254708]
[1772988624069,4.01735646,81.5,81.44,4.01735646]
[1772988624070,10.8368115,81.476,81.44,4.01735646]
[1772988626983,10.8368115,81.476,81.431,11.18254708]
[1772988627674,10.8368115,81.469,81.42,15.19990354]
[1772988627872,10.8368115,81.469,81.41,4.01735646]
[1772988628071,10.8368115,81.459,81.409,11.18254708]
[1772988628271,10.8368115,81.439,81.385,11.18254708]
[1772988628778,4.01735646,81.43,81.374,11.18254708]
[1772988628973,10.8368115,81.429,81.374,11.18254708]
[1772988629180,10.8368115,81.419,81.374,11.18254708]
[1772988629676,27.53141279,81.469,81.36,4.01735646]
[1772988629677,10.8368115,81.409,81.36,4.01735646]
[1772988629881,10.8368115,81.409,81.36,15.19990354]
[1772988630084,10.8368115,81.409,81.36,11.18254708]
[1772988630285,10.8368115,81.399,81.351,11.18254708]
[1772988630680,10.8368115,81.399,81.34,15.19990354]
[1772988631081,10.8368115,81.399,81.341,11.18254708]
[1772988631282,10.8368115,81.399,81.35,4.01735646]
[1772988631884,11.057,81.398,81.35,4.01735646]
[1772988632083,10.8368115,81.397,81.35,4.01735646]
[1772988633081,11.057,81.396,81.35,4.01735646]
[1772988633284,10.53157937,81.395,81.341,11.18254708]
[1772988634890,11.059,81.384,81.341,11.18254708]
[1772988635290,21.59057937,81.384,81.341,11.18254708]
[1772988635681,10.53157937,81.381,81.33,4.01735646]
[1772988636690,10.53157937,81.376,81.33,4.01735646]
[1772988637492,10.53157937,81.376,81.331,10.85777605]
[1772988638892,11.06,81.375,81.331,10.85777605]
[1772988639194,10.53157937,81.374,81.331,10.85777605]
[1772988641402,4.01735646,81.36,81.31,4.01735646]
[1772988641595,4.01735646,81.36,81.307,10.85777605]
[1772988641596,10.53157937,81.359,81.307,10.85777605]
[1772988641900,10.53157937,81.375,81.33,4.01735646]
[1772988642100,10.53157937,81.375,81.34,4.01735646]
[1772988642794,10.53157937,81.401,81.36,4.01735646]
[1772988643796,10.53157937,81.401,81.37,4.01735646]
[1772988644598,10.53157937,81.416,81.38,4.01735646]
[1772988644803,10.53157937,81.411,81.38,4.01735646]
[1772988645499,11.054,81.417,81.38,4.01735646]
[1772988653404,10.53157937,81.411,81.38,4.01735646]
[1772988653612,10.53157937,81.425,81.4,4.01735646]
[1772988653904,10.53157937,81.425,81.39,4.01735646]
[1772988654298,10.53157937,81.425,81.381,10.85777605]
[1772988656614,10.53157937,81.423,81.381,10.85777605]
[1772988657409,482.13198706,81.46,81.4,4.01735646]
[1772988657410,10.53157937,81.434,81.4,4.01735646]
[1772988657611,10.53157937,81.445,81.41,4.01735646]
[1772988657909,10.53157937,81.456,81.411,10.85777605]
[1772988658705,10.53157937,81.452,81.42,4.01735646]
[1772988663215,10.42989775,81.449,81.41,4.01735646]
[1772988666018,11.36450924,81.447,81.411,11.07578693]
[1772988666219,11.36450924,81.447,81.39,4.01735646]
[1772988666406,11.36450924,81.436,81.39,4.01735646]
[1772988666611,11.36450924,81.436,81.391,11.07578693]
[1772988667408,11.05,81.446,81.4,4.01735646]
[1772988667614,11.36450924,81.445,81.401,11.07578693]
[1772988667813,11.36450924,81.459,81.411,11.07578693]
[1772988669009,11.049,81.458,81.411,11.07578693]
[1772988669216,11.36450924,81.457,81.411,11.07578693]
[1772988670921,11.36450924,81.457,81.421,11.07578693]
[1772988671421,482.13198706,81.46,81.421,11.07578693]
[1772988671626,11.048,81.465,81.421,11.07578693]
[1772988675431,22.41250924,81.465,81.421,11.07578693]
[1772988675730,4.0200721,81.48,81.421,11.07578693]
[1772988675731,22.41250924,81.463,81.421,11.07578693]
[1772988677628,11.36450924,81.457,81.421,11.07578693]
[1772988678737,11.049,81.456,81.421,11.07578693]
[1772988679037,11.36450924,81.457,81.421,11.07578693]
[1772988679831,11.36450924,81.469,81.421,11.07578693]
[1772988680237,11.36450924,81.48,81.431,11.07578693]
[1772988680435,11.046,81.479,81.431,11.07578693]
[1772988680934,11.36450924,81.492,81.45,4.0200721]
[1772988681232,11.36450924,81.492,81.451,11.07578693]
[1772988681436,11.36450924,81.506,81.461,11.07578693]
[1772988682031,11.36450924,81.506,81.47,15.09585903]
[1772988682638,11.041,81.513,81.47,15.09585903]
[1772988682639,11.041,81.513,81.471,11.07578693]
[1772988683039,22.40550924,81.513,81.471,11.07578693]
[1772988686032,11.36450924,81.513,81.471,11.07578693]
[1772988686935,11.04,81.522,81.48,15.09585903]
[1772988687132,11.36450924,81.524,81.481,11.07578693]
[1772988688137,478.93346512,81.528,81.47,4.0200721]
[1772988688138,11.36450924,81.519,81.47,4.0200721]
[1772988689639,478.93346512,81.528,81.44,15.09585903]
[1772988689640,11.36450924,81.499,81.44,15.09585903]
[1772988689842,11.36450924,81.489,81.44,11.07578693]
[1772988690744,11.36450924,81.479,81.44,11.07578693]
[1772988691040,11.36450924,81.49,81.441,11.07578693]
[1772988691243,11.36450924,81.502,81.451,11.07578693]
[1772988692845,11.36450924,81.502,81.46,4.0200721]
[1772988693441,11.36450924,81.502,81.46,14.86510213]
[1772988693638,11.36450924,81.502,81.47,4.0200721]
[1772988694545,11.36450924,81.502,81.462,10.84503003]
[1772988694746,10.72113431,81.513,81.471,10.84503003]
[1772988695441,10.72113431,81.508,81.461,11.048]
[1772988695750,10.72113431,81.508,81.461,10.84503003]
[1772988696846,11.042,81.507,81.461,10.84503003]
[1772988697044,10.72113431,81.506,81.461,10.84503003]
[1772988698149,10.72113431,81.506,81.464,10.84503003]
[1772988699849,10.72113431,81.506,81.465,11.048]
[1772988700051,10.72113431,81.524,81.471,10.84503003]
[1772988701055,11.04,81.522,81.475,10.84503003]
[1772988701254,10.72113431,81.521,81.475,10.84503003]
[1772988702848,21.76213431,81.519,81.475,10.84503003]
[1772988704051,10.72113431,81.515,81.465,11.048]
[1772988704250,10.72113431,81.515,81.465,21.89303003]
[1772988704651,10.72113431,81.515,81.466,10.84503003]
[1772988705851,10.72113431,81.512,81.466,10.84503003]
[1772988706550,10.72113431,81.512,81.372,38.12473533]
[1772988706551,10.72113431,81.502,81.453,10.84503003]
[1772988707958,21.76413431,81.497,81.46,4.0200721]
[1772988708152,10.72113431,81.519,81.47,4.0200721]
[1772988708357,10.72113431,81.519,81.471,10.84503003]
[1772988709748,21.76213431,81.512,81.471,10.84503003]
[1772988711061,10.72113431,81.511,81.471,10.84503003]
[1772988713757,11.042,81.508,81.471,10.84503003]
[1772988714758,22.076,81.541,81.422,22.108]
[1772988714759,10.72113431,81.503,81.458,10.84503003]
[1772988715962,21.76413431,81.503,81.458,10.84503003]
[1772988717059,11.044,81.494,81.458,10.84503003]
[1772988717361,10.72113431,81.499,81.458,10.84503003]
[1772988718863,10.72113431,81.499,81.45,4.0200721]
[1772988718864,10.72113431,81.494,81.446,10.84503003]
[1772988719058,4.0200721,81.48,81.435,10.84503003]
[1772988719361,10.72113431,81.479,81.435,10.84503003]
[1772988720857,10.72113431,81.479,81.4,12.27]
[1772988720858,10.72113431,81.504,81.451,10.84503003]
[1772988721857,10.72113431,81.504,81.453,10.84503003]
[1772988721858,11.043,81.503,81.453,10.84503003]
[1772988722058,21.76413431,81.503,81.453,10.84503003]
[1772988722254,10.72113431,81.502,81.453,10.84503003]
[1772988723863,11.043,81.5,81.455,11.049]
[1772988724065,11.043,81.5,81.456,11.22160728]
[1772988724263,21.97215428,81.5,81.456,11.22160728]
[1772988724654,11.043,81.5,81.456,11.22160728]
[1772988724857,10.92915428,81.499,81.456,11.22160728]
[1772988729469,11.043,81.498,81.456,11.22160728]
[1772988729658,10.8887884,81.497,81.456,11.22160728]
[1772988730067,10.8887884,81.479,81.42,4.01491958]
[1772988730369,10.8887884,81.469,81.412,11.00862787]
[1772988731065,10.8887884,81.489,81.431,11.00862787]
[1772988731265,10.8887884,81.487,81.431,11.00862787]
[1772988732862,11.046,81.479,81.431,11.00862787]
[1772988734164,21.9347884,81.479,81.431,11.00862787]
[1772988735869,11.046,81.477,81.431,11.00862787]
[1772988736868,21.9347884,81.477,81.431,11.00862787]
[1772988737773,11.047,81.474,81.431,11.00862787]
[1772988744767,21.9357884,81.474,81.431,11.00862787]
[1772988745374,10.8887884,81.473,81.431,11.00862787]
[1772988748369,10.8887884,81.469,81.414,11.00862787]
[1772988749883,10.8887884,81.458,81.414,11.00862787]
[1772988751478,10.8887884,81.458,81.415,11.055]
[1772988751679,10.8887884,81.458,81.42,4.01491958]
[1772988752081,10.8887884,81.458,81.42,15.02354745]
[1772988752877,10.8887884,81.458,81.421,11.05931566]
[1772988754683,11.049,81.456,81.421,11.05931566]
[1772988756188,22.29653593,81.456,81.421,11.05931566]
[1772988756488,11.24753593,81.455,81.421,11.05931566]
[1772988760286,11.24753593,81.455,81.395,216.75859233]
[1772988760492,11.24753593,81.449,81.4,4.01491958]
[1772988761792,11.24753593,81.445,81.4,4.01491958]
[1772988762994,11.24753593,81.445,81.401,11.056]
[1772988763185,11.24753593,81.442,81.4,4.01491958]
[1772988764896,11.24753593,81.442,81.396,11.05931566]
[1772988764897,11.24753593,81.44,81.396,11.05931566]
[1772988765800,11.24753593,81.436,81.396,11.05931566]
[1772988772500,11.052,81.434,81.4,4.01491958]
[1772988772700,11.24753593,81.433,81.4,4.01491958]
[1772988777305,11.24753593,81.469,81.42,4.01491958]
[1772988777607,11.24753593,81.459,81.41,4.01491958]
[1772988778309,11.24753593,81.445,81.41,4.01491958]
[1772988779506,11.24753593,81.445,81.411,11.05931566]
[1772988786215,11.051,81.444,81.411,11.05931566]
[1772988786515,11.45282415,81.443,81.411,11.05931566]
[1772988786911,11.45282415,81.44,81.411,11.05931566]
[1772988788211,11.45282415,81.45,81.411,11.05931566]
[1772988789911,11.45282415,81.447,81.411,11.05931566]
[1772988792413,11.05,81.446,81.411,11.05931566]
[1772988792614,11.45282415,81.445,81.411,11.05931566]
[1772988793117,22.50382415,81.44,81.411,11.05931566]
[1772988796717,11.45282415,81.44,81.411,11.05931566]
[1772988796917,22.50282415,81.448,81.411,11.05931566]
[1772988797215,11.45282415,81.447,81.411,11.05931566]
[1772988799919,11.051,81.439,81.411,11.05931566]
[1772988801521,11.05,81.446,81.411,11.05931566]
[1772988801724,11.45282415,81.445,81.411,11.05931566]
[1772988804726,11.45282415,81.459,81.42,11.02490197]
[1772988804926,11.047,81.468,81.421,11.02490197]
[1772988805127,11.45282415,81.47,81.431,11.02490197]
[1772988807132,11.45282415,81.469,81.422,11.02490197]
[1772988807527,4.01981374,81.48,81.422,11.02490197]
[1772988807528,11.45282415,81.461,81.422,11.02490197]
[1772988809130,11.45282415,81.458,81.422,11.02490197]
[1772988809832,11.45282415,81.455,81.412,11.02490197]
[1772988810420,11.45282415,81.443,81.41,4.01981374]
[1772988811329,11.45282415,81.443,81.357,11.062]
[1772988811526,4.01981374,81.39,81.249,38.12473533]
[1772988811830,15.02604266,81.451,81.226,172.365]
[1772988811831,11.26510627,81.422,81.36,4.01981374]
[1772988812032,11.45282415,81.419,81.36,4.01981374]
[1772988812232,11.45282415,81.417,81.36,4.01981374]
[1772988812432,11.45282415,81.409,81.36,4.01981374]
[1772988812632,11.45282415,81.409,81.37,4.01981374]
[1772988815035,11.45282415,81.409,81.371,10.92970433]
[1772988817132,11.45282415,81.409,81.38,4.01981374]
[1772988817530,10.29087564,81.406,81.36,10.92970433]
[1772988817731,10.29087564,81.406,81.37,4.01981374]
[1772988818731,11.056,81.404,81.37,4.01981374]
[1772988819140,21.34687564,81.404,81.37,4.01981374]
[1772988819333,11.056,81.404,81.37,4.01981374]
[1772988819532,10.29087564,81.403,81.37,4.01981374]
[1772988820736,10.29087564,81.415,81.38,4.01981374]
[1772988823844,10.29087564,81.408,81.358,10.92970433]
[1772988824037,10.29087564,81.408,81.37,4.01981374]
[1772988825840,10.29087564,81.4,81.37,4.01981374]
[1772988829947,11.057,81.399,81.36,4.01981374]
[1772988830148,10.29087564,81.398,81.346,10.92970433]
[1772988830447,10.29087564,81.398,81.35,4.01981374]
[1772988830638,10.29087564,81.398,81.346,10.92970433]
[1772988831338,11.059,81.385,81.35,14.94951807]
[1772988831543,10.29087564,81.384,81.327,10.92970433]
[1772988831743,10.29087564,81.384,81.331,10.92970433]
[1772988831944,10.29087564,81.384,81.34,4.01981374]
[1772988832742,4.01981374,81.4,81.34,4.01981374]
[1772988832743,10.29087564,81.378,81.34,4.01981374]
[1772988833052,10.29087564,81.378,81.341,10.92970433]
[1772988834551,11.26510627,81.436,81.297,12.29]
[1772988834552,10.29087564,81.389,81.35,4.01981374]
[1772988834750,10.29087564,81.389,81.351,10.92970433]
[1772988835546,10.29087564,81.389,81.35,4.01981374]
[1772988835853,10.29087564,81.387,81.35,4.01981374]
[1772988836455,10.29087564,81.387,81.351,10.92970433]
[1772988841157,10.29087564,81.387,81.344,11.064]
[1772988841158,10.29087564,81.419,81.371,10.92970433]
[1772988841359,10.29087564,81.419,81.38,4.01981374]
[1772988841551,10.29087564,81.419,81.371,10.92970433]
[1772988841752,10.29087564,81.419,81.36,10.92970433]
[1772988841753,4.01981374,81.41,81.36,10.92970433]
[1772988841954,10.29087564,81.409,81.36,10.92970433]
[1772988842154,10.29087564,81.409,81.36,14.94951807]
[1772988842356,10.29087564,81.401,81.36,14.94951807]
[1772988842758,10.29087564,81.401,81.361,10.49043023]
[1772988842959,10.29087564,81.401,81.37,4.01981374]
[1772988844462,10.29087564,81.401,81.361,10.49043023]
[1772988846169,9.98779358,81.413,81.371,9.85030067]
[1772988847666,11.055,81.411,81.371,9.85030067]
[1772988850366,11.055,81.411,81.381,9.85030067]
[1772988852069,11.054,81.42,81.381,9.85030067]
[1772988852275,9.98779358,81.419,81.381,9.85030067]
[1772988853873,11.055,81.416,81.381,9.85030067]
[1772988854176,9.98779358,81.419,81.381,9.85030067]
[1772988857873,11.054,81.418,81.381,9.85030067]
[1772988858672,9.98779358,81.419,81.39,4.02300967]
[1772988860675,9.98779358,81.419,81.38,4.02300967]
[1772988863584,9.98779358,81.418,81.38,4.02300967]
[1772988864481,9.98779358,81.418,81.38,13.87331034]
[1772988864882,9.98779358,81.418,81.381,9.85030067]
[1772988869481,9.98779358,81.418,81.383,9.85030067]
[1772988869790,11.053,81.424,81.383,9.85030067]
[1772988871790,11.053,81.424,81.391,9.85030067]
[1772988872893,9.72076847,81.438,81.401,9.6562045]
[1772988873289,9.72076847,81.438,81.404,9.6562045]
[1772988875090,9.72076847,81.438,81.406,11.056]
[1772988875293,22.41172783,81.511,81.325,176.0]
[1772988875294,9.72076847,81.461,81.42,4.02300967]
[1772988875494,9.72076847,81.461,81.42,13.67921417]
[1772988876390,9.72076847,81.461,81.421,9.6562045]
[1772988876888,9.72076847,81.458,81.4,4.02300967]
[1772988877093,9.72076847,81.449,81.4,4.02300967]
[1772988877692,9.72076847,81.448,81.4,4.02300967]
[1772988878802,9.72076847,81.445,81.4,4.02300967]
[1772988879398,9.72076847,81.441,81.4,4.02300967]
[1772988881501,9.72076847,81.439,81.4,4.02300967]
[1772988883608,9.72076847,81.439,81.399,9.6562045]
[1772988883908,9.72076847,81.437,81.399,9.6562045]
[1772988884607,9.72076847,81.436,81.399,9.6562045]
[1772988886311,9.72076847,81.436,81.4,11.057]
[1772988890407,9.72076847,81.436,81.401,9.6562045]
[1772988892414,9.72076847,81.444,81.401,9.6562045]
[1772988893907,9.72076847,81.444,81.404,9.6562045]
[1772988897513,9.72076847,81.442,81.404,9.6562045]
[1772988899414,11.25964522,81.482,81.354,348.01303342]
[1772988899415,402.79828168,81.462,81.43,4.02300967]
[1772988899614,33.93030158,81.472,81.43,4.02300967]
[1772988900316,33.93043854,81.469,81.41,4.02300967]
[1772988901120,33.55680432,81.459,81.401,11.056]
[1772988903520,33.61200804,81.457,81.401,11.056]
[1772988904724,33.61200804,81.457,81.411,11.055]
[1772988913928,4.01936101,81.46,81.411,11.055]
[1772988913929,33.64823883,81.454,81.411,11.055]
[1772988918924,33.66781831,81.447,81.4,4.01936101]
[1772988919129,33.66781831,81.439,81.39,4.01936101]
[1772988919533,33.66781831,81.439,81.393,11.057]
[1772988919928,33.66781831,81.439,81.38,4.01936101]
[1772988920128,33.67458058,81.429,81.38,4.01936101]
[1772988921436,33.67458058,81.429,81.37,4.01936101]
[1772988921834,33.68396928,81.422,81.377,11.06]
[1772988923039,33.68731461,81.433,81.39,4.01936101]
[1772988923537,33.69471782,81.449,81.4,4.01936101]
[1772988923735,951.18242598,81.468,81.41,4.01936101]
[1772988923930,33.69471782,81.467,81.41,4.01936101]
[1772988924838,33.69796025,81.465,81.418,11.054]
[1772988925830,33.68546348,81.461,81.418,11.054]
[1772988927840,33.87966422,81.459,81.418,11.054]
[1772988932346,33.89094956,81.457,81.41,15.07436101]
[1772988935350,33.89203359,81.455,81.41,15.07436101]
[1772988940550,33.89203359,81.455,81.419,11.054]
[1772988952963,33.89203359,81.455,81.412,11.055]
[1772988953660,33.89203359,81.455,81.41,4.01936101]
[1772988954964,33.7715097,81.452,81.41,4.01936101]
[1772988955159,33.7715097,81.452,81.4,4.01936101]
[1772988955557,33.77297766,81.447,81.407,11.056]
[1772988957163,33.77297766,81.447,81.411,11.055]
[1772988975379,33.77297766,81.447,81.418,11.054]